[Event "Early-Titled-Tuesday-Blitz-May-28-2024"]
[Site "Chess.com"]
[Date "2024.05.28"]
[Round "3"]
[White "IndianSchoolOfSuffering"]
[Black "Shankland"]
[Result "0-1"]
[WhiteElo "2533"]
[BlackElo "2980"]
[TimeControl "180+1"]
[EndTime "8:25:47 PDT"]
[Termination "Shankland won by resignation"]

1. e4 {[%clk 0:03:00.9]} 1... c5 {[%clk 0:02:58.5]} 2. Nf3 {[%clk 0:03:00.7]}
2... d6 {[%clk 0:02:58.8]} 3. h3 {[%clk 0:02:54.8]} 3... Nf6 {[%clk 0:02:57.4]}
4. Nc3 {[%clk 0:02:54]} 4... Nc6 {[%clk 0:02:56.4]} 5. d4 {[%clk 0:02:47.5]}
5... cxd4 {[%clk 0:02:55.9]} 6. Nxd4 {[%clk 0:02:48.4]} 6... g6 {[%clk
0:02:56.1]} 7. Be3 {[%clk 0:02:46.9]} 7... Bg7 {[%clk 0:02:55.7]} 8. Be2 {[%clk
0:02:47.2]} 8... O-O {[%clk 0:02:55.6]} 9. O-O {[%clk 0:02:47.3]} 9... Bd7
{[%clk 0:02:55.6]} 10. Nb3 {[%clk 0:02:47]} 10... a6 {[%clk 0:02:54.8]} 11. a4
{[%clk 0:02:41.3]} 11... Be6 {[%clk 0:02:55]} 12. Nd4 {[%clk 0:02:38.8]} 12...
Nxd4 {[%clk 0:02:53.6]} 13. Bxd4 {[%clk 0:02:38.9]} 13... Qa5 {[%clk 0:02:53.9]}
14. Bf3 {[%clk 0:02:32.8]} 14... Rac8 {[%clk 0:02:52.8]} 15. Re1 {[%clk
0:02:32.8]} 15... Nd7 {[%clk 0:02:48.8]} 16. Bxg7 {[%clk 0:02:25.9]} 16... Kxg7
{[%clk 0:02:49.7]} 17. Nd5 {[%clk 0:02:21.5]} 17... Rfe8 {[%clk 0:02:47.4]} 18.
c3 {[%clk 0:02:16]} 18... Ne5 {[%clk 0:02:39.1]} 19. b4 {[%clk 0:02:13]} 19...
Qd8 {[%clk 0:02:37.6]} 20. Qd4 {[%clk 0:02:12.8]} 20... Rc4 {[%clk 0:02:36.7]}
21. Qd2 {[%clk 0:02:09.6]} 21... Bxd5 {[%clk 0:02:34.5]} 22. exd5 {[%clk
0:02:07.1]} 22... Qc7 {[%clk 0:02:34]} 23. Re3 {[%clk 0:02:03.2]} 23... Rc8
{[%clk 0:02:32]} 24. Rae1 {[%clk 0:01:56.7]} 24... Rxc3 {[%clk 0:02:30.6]} 25.
Bd1 {[%clk 0:01:52.2]} 25... Rxe3 {[%clk 0:02:29]} 26. Qxe3 {[%clk 0:01:52.3]}
26... Qc3 {[%clk 0:02:26.6]} 27. Qxc3 {[%clk 0:01:47.8]} 27... Rxc3 {[%clk
0:02:27.5]} 28. f4 {[%clk 0:01:47.5]} 28... Nc4 {[%clk 0:02:19.1]} 29. Kf2
{[%clk 0:01:35.2]} 29... Kf8 {[%clk 0:02:18.4]} 30. Be2 {[%clk 0:01:32.6]} 30...
Nb6 {[%clk 0:02:15.6]} 31. b5 {[%clk 0:01:24.8]} 31... a5 {[%clk 0:02:14.5]} 32.
Bf3 {[%clk 0:01:23.8]} 32... Nxa4 {[%clk 0:02:12.3]} 33. Ra1 {[%clk 0:01:23.4]}
33... Rc4 {[%clk 0:02:12.5]} 34. Ke3 {[%clk 0:01:20.5]} 34... b6 {[%clk
0:02:11.5]} 35. Be2 {[%clk 0:01:15.2]} 35... Rb4 {[%clk 0:02:11.7]} 36. Rc1
{[%clk 0:01:13.2]} 36... Nc5 {[%clk 0:02:11.7]} 0-1

[Event "Early-Titled-Tuesday-Blitz-May-28-2024"]
[Site "Chess.com"]
[Date "2024.05.28"]
[Round "3"]
[White "guineo59"]
[Black "MathiasWomacka"]
[Result "1-0"]
[WhiteElo "2335"]
[BlackElo "2516"]
[TimeControl "180+1"]
[EndTime "8:25:56 PDT"]
[Termination "guineo59 won by checkmate"]

1. d4 {[%clk 0:02:55]} 1... Nf6 {[%clk 0:02:58.8]} 2. Nf3 {[%clk 0:02:55.3]}
2... e6 {[%clk 0:02:59]} 3. e3 {[%clk 0:02:55.4]} 3... c5 {[%clk 0:02:58.4]} 4.
Bd3 {[%clk 0:02:55.5]} 4... Nc6 {[%clk 0:02:56.7]} 5. c3 {[%clk 0:02:55.3]} 5...
d5 {[%clk 0:02:55.5]} 6. O-O {[%clk 0:02:55.2]} 6... Bd6 {[%clk 0:02:55.9]} 7.
Nbd2 {[%clk 0:02:55.2]} 7... O-O {[%clk 0:02:55.8]} 8. dxc5 {[%clk 0:02:55.3]}
8... Bxc5 {[%clk 0:02:55.3]} 9. e4 {[%clk 0:02:56.2]} 9... Qc7 {[%clk
0:02:48.3]} 10. Qe2 {[%clk 0:02:55]} 10... h6 {[%clk 0:02:40.1]} 11. a3 {[%clk
0:02:48.4]} 11... b6 {[%clk 0:02:36.9]} 12. b4 {[%clk 0:02:45.3]} 12... Bd6
{[%clk 0:02:36.4]} 13. h3 {[%clk 0:02:34.4]} 13... Bb7 {[%clk 0:02:35.2]} 14.
Bb2 {[%clk 0:02:31.3]} 14... Rad8 {[%clk 0:02:14.8]} 15. c4 {[%clk 0:02:26.3]}
15... dxc4 {[%clk 0:02:02.5]} 16. Nxc4 {[%clk 0:02:17.8]} 16... Bf4 {[%clk
0:02:01.5]} 17. e5 {[%clk 0:02:13.5]} 17... Nd5 {[%clk 0:01:52.8]} 18. Qe4
{[%clk 0:02:13.1]} 18... g6 {[%clk 0:01:48.4]} 19. g3 {[%clk 0:02:08.8]} 19...
b5 {[%clk 0:01:37.4]} 20. Nd6 {[%clk 0:01:56.6]} 20... Bxe5 {[%clk 0:01:30.4]}
21. Nxe5 {[%clk 0:01:32.4]} 21... Qxd6 {[%clk 0:01:27.9]} 22. Nxg6 {[%clk
0:01:22.8]} 22... Nc3 {[%clk 0:01:25.8]} 23. Ne7+ {[%clk 0:01:18.6]} 23... Nxe7
{[%clk 0:01:24.4]} 24. Qh7# {[%clk 0:01:18]} 1-0

[Event "Early-Titled-Tuesday-Blitz-May-28-2024"]
[Site "Chess.com"]
[Date "2024.05.28"]
[Round "3"]
[White "SkippingLaptop"]
[Black "Viktoker"]
[Result "0-1"]
[WhiteElo "2101"]
[BlackElo "2399"]
[TimeControl "180+1"]
[EndTime "8:26:01 PDT"]
[Termination "Viktoker won by resignation"]

1. d4 {[%clk 0:02:56]} 1... f5 {[%clk 0:02:29.9]} 2. g3 {[%clk 0:02:52.5]} 2...
Nf6 {[%clk 0:02:27.1]} 3. Bg2 {[%clk 0:02:52.4]} 3... e6 {[%clk 0:02:27]} 4. Nf3
{[%clk 0:02:52.8]} 4... Be7 {[%clk 0:02:21.3]} 5. O-O {[%clk 0:02:52.7]} 5... d5
{[%clk 0:02:17.5]} 6. c4 {[%clk 0:02:52.5]} 6... Ne4 {[%clk 0:02:17.9]} 7. Nfd2
{[%clk 0:02:47.3]} 7... Nc6 {[%clk 0:02:13.3]} 8. Nxe4 {[%clk 0:02:44.4]} 8...
fxe4 {[%clk 0:02:11.4]} 9. cxd5 {[%clk 0:02:41.4]} 9... exd5 {[%clk 0:02:11.3]}
10. Nc3 {[%clk 0:02:40.4]} 10... Bf6 {[%clk 0:02:04.8]} 11. e3 {[%clk
0:02:39.5]} 11... O-O {[%clk 0:02:02.9]} 12. f3 {[%clk 0:02:29.9]} 12... exf3
{[%clk 0:01:39.4]} 13. Qxf3 {[%clk 0:02:27.9]} 13... Ne7 {[%clk 0:01:38.6]} 14.
Nxd5 {[%clk 0:02:26.5]} 14... c6 {[%clk 0:01:20]} 15. Nxf6+ {[%clk 0:02:20.9]}
15... Rxf6 {[%clk 0:01:20.9]} 16. Qe2 {[%clk 0:02:18.9]} 16... Rxf1+ {[%clk
0:01:14.5]} 17. Qxf1 {[%clk 0:02:19.8]} 17... Be6 {[%clk 0:01:05.3]} 18. b3
{[%clk 0:02:16.5]} 18... Qd7 {[%clk 0:01:04.4]} 19. Bb2 {[%clk 0:02:15.8]} 19...
Rf8 {[%clk 0:01:03.9]} 20. Qe2 {[%clk 0:02:14.5]} 20... Bg4 {[%clk 0:00:59.9]}
21. Qd2 {[%clk 0:02:13]} 21... h5 {[%clk 0:00:50.2]} 22. Rf1 {[%clk 0:02:11.4]}
22... Rxf1+ {[%clk 0:00:49]} 23. Bxf1 {[%clk 0:02:10.6]} 23... Qf5 {[%clk
0:00:46.9]} 24. Bd3 {[%clk 0:02:05.1]} 24... Qf3 {[%clk 0:00:44.9]} 25. Qe2
{[%clk 0:02:02.7]} 25... Qxe2 {[%clk 0:00:44.6]} 0-1

[Event "Early-Titled-Tuesday-Blitz-May-28-2024"]
[Site "Chess.com"]
[Date "2024.05.28"]
[Round "3"]
[White "Alexchess1984"]
[Black "Masterbeaterr"]
[Result "0-1"]
[WhiteElo "2618"]
[BlackElo "2463"]
[TimeControl "180+1"]
[EndTime "8:26:35 PDT"]
[Termination "Masterbeaterr won by resignation"]

1. d4 {[%clk 0:03:00.9]} 1... d5 {[%clk 0:02:59.8]} 2. Bf4 {[%clk 0:02:59.3]}
2... c5 {[%clk 0:02:59.4]} 3. e3 {[%clk 0:02:58.6]} 3... cxd4 {[%clk 0:02:59.3]}
4. exd4 {[%clk 0:02:55.7]} 4... Nc6 {[%clk 0:03:00.2]} 5. c3 {[%clk 0:02:54.9]}
5... f6 {[%clk 0:02:59.3]} 6. Nf3 {[%clk 0:02:54.5]} 6... g5 {[%clk 0:02:57.2]}
7. Nxg5 {[%clk 0:02:46]} 7... fxg5 {[%clk 0:02:58.1]} 8. Qh5+ {[%clk 0:02:46.5]}
8... Kd7 {[%clk 0:02:56.5]} 9. Bxg5 {[%clk 0:02:41.7]} 9... Qe8 {[%clk
0:02:46.9]} 10. Qf3 {[%clk 0:02:30.9]} 10... e6 {[%clk 0:02:42.3]} 11. Nd2
{[%clk 0:02:27.5]} 11... Bg7 {[%clk 0:02:36.3]} 12. g3 {[%clk 0:02:26.4]} 12...
Nge7 {[%clk 0:02:36.7]} 13. Bh3 {[%clk 0:02:25.6]} 13... Qg6 {[%clk 0:02:30.4]}
14. Bf4 {[%clk 0:02:22.7]} 14... Rf8 {[%clk 0:02:24.7]} 15. Nb3 {[%clk
0:02:20.1]} 15... b6 {[%clk 0:02:22.9]} 16. O-O {[%clk 0:02:18.5]} 16... Bh6
{[%clk 0:02:12.7]} 17. Kh1 {[%clk 0:02:03]} 17... Bxf4 {[%clk 0:02:11.5]} 18.
gxf4 {[%clk 0:02:01.9]} 18... Qh6 {[%clk 0:02:08.6]} 19. Rae1 {[%clk 0:01:53]}
19... Nf5 {[%clk 0:02:04.3]} 20. Rg1 {[%clk 0:01:46]} 20... Kc7 {[%clk
0:01:59.9]} 21. Nc1 {[%clk 0:01:44.4]} 21... Bd7 {[%clk 0:01:59.3]} 22. Nd3
{[%clk 0:01:44.3]} 22... Rg8 {[%clk 0:01:56.4]} 23. Ne5 {[%clk 0:01:41.9]} 23...
Nxe5 {[%clk 0:01:55.9]} 24. dxe5 {[%clk 0:01:34.8]} 24... Bc6 {[%clk 0:01:54.9]}
25. Bxf5 {[%clk 0:01:16.8]} 25... exf5 {[%clk 0:01:49.2]} 0-1

[Event "Early-Titled-Tuesday-Blitz-May-28-2024"]
[Site "Chess.com"]
[Date "2024.05.28"]
[Round "3"]
[White "Susal_De_Silva"]
[Black "Felix-Rose"]
[Result "1-0"]
[WhiteElo "2608"]
[BlackElo "2324"]
[TimeControl "180+1"]
[EndTime "8:26:42 PDT"]
[Termination "Susal_De_Silva won by resignation"]

1. e4 {[%clk 0:03:00.9]} 1... e5 {[%clk 0:02:56.9]} 2. Nf3 {[%clk 0:03:00.1]}
2... Nc6 {[%clk 0:02:56.7]} 3. Bc4 {[%clk 0:02:58.1]} 3... Nf6 {[%clk
0:02:56.5]} 4. d3 {[%clk 0:02:57.5]} 4... Bc5 {[%clk 0:02:55.9]} 5. c3 {[%clk
0:02:56.3]} 5... d6 {[%clk 0:02:56.1]} 6. O-O {[%clk 0:02:56]} 6... a5 {[%clk
0:02:56.2]} 7. Bb3 {[%clk 0:02:54.5]} 7... h6 {[%clk 0:02:54.7]} 8. Nbd2 {[%clk
0:02:52.9]} 8... Be6 {[%clk 0:02:49.6]} 9. Re1 {[%clk 0:02:50.7]} 9... O-O
{[%clk 0:02:45.8]} 10. Nf1 {[%clk 0:02:49.2]} 10... Qd7 {[%clk 0:02:40.2]} 11.
Ng3 {[%clk 0:02:47.8]} 11... Rfe8 {[%clk 0:02:37.4]} 12. a4 {[%clk 0:02:43.8]}
12... Ne7 {[%clk 0:02:29.6]} 13. h3 {[%clk 0:02:39.9]} 13... Bxb3 {[%clk
0:02:17.7]} 14. Qxb3 {[%clk 0:02:39.7]} 14... Ng6 {[%clk 0:02:10.4]} 15. Nf5
{[%clk 0:02:37.6]} 15... c6 {[%clk 0:01:59.2]} 16. Be3 {[%clk 0:02:32.1]} 16...
Bxe3 {[%clk 0:01:55.6]} 17. Rxe3 {[%clk 0:02:33]} 17... d5 {[%clk 0:01:52.9]}
18. N3h4 {[%clk 0:02:28.6]} 18... Nxh4 {[%clk 0:01:40.5]} 19. Nxh4 {[%clk
0:02:29.5]} 19... Rad8 {[%clk 0:01:12]} 20. Rae1 {[%clk 0:02:23.5]} 20... d4
{[%clk 0:01:02.6]} 21. cxd4 {[%clk 0:02:20.9]} 21... Qxd4 {[%clk 0:00:49.9]} 22.
Rg3 {[%clk 0:02:17.8]} 22... Qb4 {[%clk 0:00:44.2]} 23. Qd1 {[%clk 0:02:11.6]}
23... Nh5 {[%clk 0:00:36.8]} 24. Qxh5 {[%clk 0:02:07.6]} 24... Qxe1+ {[%clk
0:00:34.8]} 25. Kh2 {[%clk 0:02:08.2]} 25... Rd6 {[%clk 0:00:18.9]} 26. Nf5
{[%clk 0:02:01.5]} 26... Rg6 {[%clk 0:00:19]} 27. Rxg6 {[%clk 0:02:01.2]} 27...
fxg6 {[%clk 0:00:17.5]} 28. Qxg6 {[%clk 0:02:02.1]} 1-0

[Event "Early-Titled-Tuesday-Blitz-May-28-2024"]
[Site "Chess.com"]
[Date "2024.05.28"]
[Round "3"]
[White "pirulillo"]
[Black "mangochessgo"]
[Result "0-1"]
[WhiteElo "2354"]
[BlackElo "2588"]
[TimeControl "180+1"]
[EndTime "8:26:45 PDT"]
[Termination "mangochessgo won by resignation"]

1. e4 {[%clk 0:03:00.9]} 1... Nf6 {[%clk 0:02:59.7]} 2. e5 {[%clk 0:02:58.7]}
2... Nd5 {[%clk 0:03:00]} 3. d4 {[%clk 0:02:59.6]} 3... d6 {[%clk 0:03:00.2]} 4.
c4 {[%clk 0:03:00.4]} 4... Nb6 {[%clk 0:03:00.6]} 5. exd6 {[%clk 0:03:01.3]}
5... cxd6 {[%clk 0:03:00.4]} 6. Nc3 {[%clk 0:03:01.7]} 6... g6 {[%clk
0:03:00.1]} 7. Be3 {[%clk 0:03:02]} 7... Bg7 {[%clk 0:03:00.5]} 8. Rc1 {[%clk
0:03:02.6]} 8... O-O {[%clk 0:02:59.8]} 9. b3 {[%clk 0:03:03.2]} 9... Bf5 {[%clk
0:02:56.6]} 10. Be2 {[%clk 0:03:02.1]} 10... Re8 {[%clk 0:02:55.4]} 11. Nf3
{[%clk 0:02:57.9]} 11... d5 {[%clk 0:02:26.8]} 12. c5 {[%clk 0:02:51]} 12... Nc8
{[%clk 0:02:25.7]} 13. b4 {[%clk 0:02:50.3]} 13... a6 {[%clk 0:02:22.9]} 14. O-O
{[%clk 0:02:46.4]} 14... Nc6 {[%clk 0:02:22.6]} 15. Qb3 {[%clk 0:02:44.8]} 15...
Be4 {[%clk 0:02:19]} 16. Rfd1 {[%clk 0:02:44.1]} 16... Bxf3 {[%clk 0:02:16]} 17.
Bxf3 {[%clk 0:02:45]} 17... e6 {[%clk 0:02:16.4]} 18. a4 {[%clk 0:02:40.2]}
18... N8e7 {[%clk 0:02:16.3]} 19. b5 {[%clk 0:02:38]} 19... Na5 {[%clk
0:02:15.7]} 20. Qb4 {[%clk 0:02:35.2]} 20... Nc4 {[%clk 0:02:10.2]} 21. Be2
{[%clk 0:02:30.6]} 21... Nxe3 {[%clk 0:02:01.4]} 22. fxe3 {[%clk 0:02:31.5]}
22... Nf5 {[%clk 0:01:58.1]} 23. Rd3 {[%clk 0:02:23.4]} 23... Bh6 {[%clk
0:01:55.3]} 24. Nd1 {[%clk 0:02:22]} 24... axb5 {[%clk 0:01:51.1]} 25. axb5
{[%clk 0:02:17.6]} 25... Ra2 {[%clk 0:01:50.6]} 26. Bg4 {[%clk 0:02:07.8]} 26...
Nxe3 {[%clk 0:01:18.9]} 27. Nxe3 {[%clk 0:02:01.8]} 27... Qh4 {[%clk 0:01:10.3]}
28. c6 {[%clk 0:01:04.9]} 28... Bxe3+ {[%clk 0:01:07.8]} 29. Rxe3 {[%clk
0:01:04.6]} 29... Qf2+ {[%clk 0:01:06.6]} 0-1

[Event "Early-Titled-Tuesday-Blitz-May-28-2024"]
[Site "Chess.com"]
[Date "2024.05.28"]
[Round "3"]
[White "francyIM"]
[Black "LiadCuba"]
[Result "1-0"]
[WhiteElo "2808"]
[BlackElo "2519"]
[TimeControl "180+1"]
[EndTime "8:26:56 PDT"]
[Termination "francyIM won by checkmate"]

1. e4 {[%clk 0:03:00.7]} 1... c5 {[%clk 0:02:47.8]} 2. e5 {[%clk 0:03:00.7]}
2... d6 {[%clk 0:02:45.7]} 3. f4 {[%clk 0:02:52.4]} 3... dxe5 {[%clk 0:02:39.7]}
4. fxe5 {[%clk 0:02:50.8]} 4... a6 {[%clk 0:02:40.2]} 5. a4 {[%clk 0:02:46.7]}
5... Nc6 {[%clk 0:02:39.9]} 6. Nf3 {[%clk 0:02:46.4]} 6... h6 {[%clk 0:02:37.7]}
7. Bc4 {[%clk 0:02:46.1]} 7... Bf5 {[%clk 0:02:35.9]} 8. d3 {[%clk 0:02:37.9]}
8... e6 {[%clk 0:02:35.2]} 9. O-O {[%clk 0:02:38.2]} 9... Nxe5 {[%clk
0:02:24.4]} 10. Nxe5 {[%clk 0:02:35.7]} 10... Qd4+ {[%clk 0:02:24.3]} 11. Kh1
{[%clk 0:02:36.2]} 11... Qxe5 {[%clk 0:02:24.5]} 12. Qf3 {[%clk 0:02:36.4]}
12... Bd6 {[%clk 0:02:21.1]} 13. g3 {[%clk 0:02:34.4]} 13... O-O-O {[%clk
0:01:45]} 14. Nc3 {[%clk 0:02:26.8]} 14... g5 {[%clk 0:01:20.7]} 15. Bd2 {[%clk
0:02:03.5]} 15... Ne7 {[%clk 0:01:19]} 16. Rfe1 {[%clk 0:01:59.6]} 16... Qg7
{[%clk 0:01:10]} 17. Ra3 {[%clk 0:01:54.3]} 17... Nc6 {[%clk 0:00:44.6]} 18.
Bxa6 {[%clk 0:01:38.2]} 18... Kc7 {[%clk 0:00:20]} 19. Nb5+ {[%clk 0:01:37.5]}
19... Kb6 {[%clk 0:00:19.6]} 20. Nxd6 {[%clk 0:01:24.5]} 20... Rxd6 {[%clk
0:00:20.5]} 21. Bc3 {[%clk 0:01:17.7]} 21... Nd4 {[%clk 0:00:17.4]} 22. Qxb7#
{[%clk 0:01:16.7]} 1-0

[Event "Early-Titled-Tuesday-Blitz-May-28-2024"]
[Site "Chess.com"]
[Date "2024.05.28"]
[Round "3"]
[White "DominguezOnYoutube"]
[Black "Kildepiotr"]
[Result "1-0"]
[WhiteElo "2996"]
[BlackElo "2744"]
[TimeControl "180+1"]
[EndTime "8:26:58 PDT"]
[Termination "DominguezOnYoutube won by resignation"]

1. e4 {[%clk 0:03:00.9]} 1... c6 {[%clk 0:03:00.1]} 2. d4 {[%clk 0:03:00.5]}
2... d5 {[%clk 0:02:59.5]} 3. e5 {[%clk 0:03:01]} 3... Bf5 {[%clk 0:02:59.3]} 4.
Nf3 {[%clk 0:03:01.4]} 4... e6 {[%clk 0:02:59.7]} 5. Be2 {[%clk 0:03:01.9]} 5...
Nd7 {[%clk 0:02:58.9]} 6. O-O {[%clk 0:03:01.6]} 6... Bg6 {[%clk 0:02:58.1]} 7.
Nbd2 {[%clk 0:02:59.3]} 7... Nh6 {[%clk 0:02:58.1]} 8. Nb3 {[%clk 0:02:58.8]}
8... Nf5 {[%clk 0:02:58.5]} 9. a4 {[%clk 0:02:58.9]} 9... Rc8 {[%clk 0:02:56.1]}
10. a5 {[%clk 0:02:54.9]} 10... a6 {[%clk 0:02:56.2]} 11. Bf4 {[%clk 0:02:19.5]}
11... c5 {[%clk 0:02:54.3]} 12. dxc5 {[%clk 0:01:44.6]} 12... Nxc5 {[%clk
0:02:54.3]} 13. c4 {[%clk 0:01:40.2]} 13... d4 {[%clk 0:02:21.9]} 14. Nbxd4
{[%clk 0:01:35.8]} 14... Nxd4 {[%clk 0:02:21.2]} 15. Nxd4 {[%clk 0:01:32.9]}
15... Bd3 {[%clk 0:02:05.9]} 16. Be3 {[%clk 0:01:22.5]} 16... Bxe2 {[%clk
0:01:57.3]} 17. Qxe2 {[%clk 0:01:23.4]} 17... Be7 {[%clk 0:01:50.9]} 18. b4
{[%clk 0:01:12.5]} 18... Nd7 {[%clk 0:01:43.6]} 19. c5 {[%clk 0:00:57.7]} 19...
Nxe5 {[%clk 0:01:41]} 20. Rfd1 {[%clk 0:00:58.3]} 20... Bf6 {[%clk 0:01:27.5]}
21. Nf5 {[%clk 0:00:45.9]} 21... exf5 {[%clk 0:01:12.7]} 22. Rxd8+ {[%clk
0:00:43.9]} 22... Rxd8 {[%clk 0:01:13.6]} 23. Bf4 {[%clk 0:00:38.6]} 23... Rd5
{[%clk 0:01:12.3]} 24. Rd1 {[%clk 0:00:35.1]} 24... Rxd1+ {[%clk 0:01:10.6]} 25.
Qxd1 {[%clk 0:00:36]} 25... O-O {[%clk 0:01:10.5]} 26. Bxe5 {[%clk 0:00:34.6]}
26... Bxe5 {[%clk 0:01:10.6]} 27. Qd5 {[%clk 0:00:34.3]} 1-0

[Event "Early-Titled-Tuesday-Blitz-May-28-2024"]
[Site "Chess.com"]
[Date "2024.05.28"]
[Round "3"]
[White "Let_it_be_1"]
[Black "Veleamater"]
[Result "1-0"]
[WhiteElo "2614"]
[BlackElo "2436"]
[TimeControl "180+1"]
[EndTime "8:26:58 PDT"]
[Termination "Let_it_be_1 won by resignation"]

1. e4 {[%clk 0:02:57.5]} 1... d6 {[%clk 0:03:00]} 2. d4 {[%clk 0:02:57.1]} 2...
g6 {[%clk 0:03:00.6]} 3. Nc3 {[%clk 0:02:56.5]} 3... Bg7 {[%clk 0:03:01.2]} 4.
f4 {[%clk 0:02:56.4]} 4... Nf6 {[%clk 0:03:00.1]} 5. Nf3 {[%clk 0:02:56.3]} 5...
O-O {[%clk 0:03:00.3]} 6. Be3 {[%clk 0:02:56.5]} 6... Nc6 {[%clk 0:03:00.8]} 7.
e5 {[%clk 0:02:52.1]} 7... Nd7 {[%clk 0:02:58]} 8. Qd2 {[%clk 0:02:35.2]} 8...
Nb6 {[%clk 0:02:46.2]} 9. O-O-O {[%clk 0:02:34.3]} 9... dxe5 {[%clk 0:02:45]}
10. dxe5 {[%clk 0:02:32.5]} 10... Qxd2+ {[%clk 0:02:44.7]} 11. Rxd2 {[%clk
0:02:30.6]} 11... e6 {[%clk 0:02:39.9]} 12. Bb5 {[%clk 0:02:13.4]} 12... a6
{[%clk 0:02:33.5]} 13. Bxc6 {[%clk 0:02:12.1]} 13... bxc6 {[%clk 0:02:33.7]} 14.
b3 {[%clk 0:02:12.6]} 14... Nd5 {[%clk 0:02:33.2]} 15. Bd4 {[%clk 0:02:08.9]}
15... Nxf4 {[%clk 0:02:08.6]} 16. Ne4 {[%clk 0:02:04.5]} 16... h6 {[%clk
0:02:06.3]} 17. c4 {[%clk 0:01:56]} 17... g5 {[%clk 0:02:03.6]} 18. Nf6+ {[%clk
0:01:50.7]} 18... Bxf6 {[%clk 0:02:00.7]} 19. exf6 {[%clk 0:01:50.5]} 19... Ng6
{[%clk 0:02:00.1]} 20. Ne5 {[%clk 0:01:45.4]} 20... Kh7 {[%clk 0:01:57.7]} 21.
Bc5 {[%clk 0:01:26.3]} 21... Bb7 {[%clk 0:01:43.8]} 22. Nxg6 {[%clk 0:01:18.2]}
22... Kxg6 {[%clk 0:01:42.4]} 23. Bxf8 {[%clk 0:01:18.3]} 23... Rxf8 {[%clk
0:01:42.2]} 24. Rf1 {[%clk 0:01:18.2]} 24... c5 {[%clk 0:01:42.3]} 25. g3 {[%clk
0:01:14.2]} 25... h5 {[%clk 0:01:38.8]} 26. Rd7 {[%clk 0:01:13.3]} 26... Be4
{[%clk 0:01:38.3]} 27. Rxc7 {[%clk 0:01:06.4]} 27... g4 {[%clk 0:01:38.2]} 28.
Rxc5 {[%clk 0:01:04.8]} 28... Bf3 {[%clk 0:01:36.2]} 29. h4 {[%clk 0:01:00.3]}
29... Kxf6 {[%clk 0:01:34.3]} 30. Rxh5 {[%clk 0:00:59.8]} 30... Rd8 {[%clk
0:01:32.3]} 31. Rg5 {[%clk 0:00:53.5]} 31... e5 {[%clk 0:01:31.7]} 32. Rxg4
{[%clk 0:00:52.7]} 32... Rd3 {[%clk 0:01:30]} 33. Kc2 {[%clk 0:00:43.6]} 33...
Re3 {[%clk 0:01:29.5]} 34. Kd2 {[%clk 0:00:43.9]} 34... Re2+ {[%clk 0:01:29.8]}
35. Kd3 {[%clk 0:00:44.4]} 35... e4+ {[%clk 0:01:26.3]} 36. Rxe4 {[%clk
0:00:44.6]} 36... Rxe4 {[%clk 0:01:24.5]} 37. Rxf3+ {[%clk 0:00:44.7]} 37... Ke5
{[%clk 0:01:25]} 38. Re3 {[%clk 0:00:44.9]} 1-0

[Event "Early-Titled-Tuesday-Blitz-May-28-2024"]
[Site "Chess.com"]
[Date "2024.05.28"]
[Round "3"]
[White "JoliyRoger"]
[Black "bubeliang"]
[Result "0-1"]
[WhiteElo "2442"]
[BlackElo "2790"]
[TimeControl "180+1"]
[EndTime "8:27:04 PDT"]
[Termination "bubeliang won by resignation"]

1. d4 {[%clk 0:02:37.3]} 1... d5 {[%clk 0:02:57.4]} 2. c4 {[%clk 0:02:37.8]}
2... e6 {[%clk 0:02:56.2]} 3. Nc3 {[%clk 0:02:38.4]} 3... Nf6 {[%clk 0:02:55.7]}
4. Nf3 {[%clk 0:02:34.6]} 4... dxc4 {[%clk 0:02:55.5]} 5. e3 {[%clk 0:02:34.7]}
5... c5 {[%clk 0:02:53.5]} 6. Bxc4 {[%clk 0:02:35.2]} 6... cxd4 {[%clk
0:02:53.4]} 7. exd4 {[%clk 0:02:35.9]} 7... Be7 {[%clk 0:02:53.5]} 8. O-O {[%clk
0:02:36.6]} 8... O-O {[%clk 0:02:54.4]} 9. d5 {[%clk 0:02:36.8]} 9... a6 {[%clk
0:02:55.3]} 10. dxe6 {[%clk 0:02:36.1]} 10... Bxe6 {[%clk 0:02:45.5]} 11. Bxe6
{[%clk 0:02:35.2]} 11... fxe6 {[%clk 0:02:46.4]} 12. Qb3 {[%clk 0:02:35.1]}
12... Qc8 {[%clk 0:02:31.3]} 13. Ng5 {[%clk 0:02:19.6]} 13... Kh8 {[%clk
0:02:28.8]} 14. Re1 {[%clk 0:02:03.2]} 14... Nc6 {[%clk 0:02:25.5]} 15. Nxe6
{[%clk 0:02:00.7]} 15... Re8 {[%clk 0:02:24.4]} 16. Ng5 {[%clk 0:02:01.1]} 16...
Nd8 {[%clk 0:02:14.5]} 17. Bf4 {[%clk 0:01:45.3]} 17... h6 {[%clk 0:02:11.1]}
18. Nf3 {[%clk 0:01:45.6]} 18... Nc6 {[%clk 0:02:08.2]} 19. Rac1 {[%clk
0:01:28.2]} 19... Bb4 {[%clk 0:02:03.1]} 20. Qf7 {[%clk 0:01:17.5]} 20... Rxe1+
{[%clk 0:01:55.9]} 21. Rxe1 {[%clk 0:01:16]} 21... Qf8 {[%clk 0:01:30.8]} 22.
Qxb7 {[%clk 0:01:03.2]} 22... Na5 {[%clk 0:01:30.6]} 23. Qc7 {[%clk 0:00:42.2]}
23... Rc8 {[%clk 0:01:29.2]} 24. Qa7 {[%clk 0:00:32.8]} 24... Nc4 {[%clk
0:01:26.4]} 25. Re7 {[%clk 0:00:15.2]} 25... Bxe7 {[%clk 0:01:25.2]} 0-1